[Event "Titled Tuesday Blitz April 25 Early 2023"]
[White "Esipenko, Andrey"]
[Black "Bashirli, Nail"]
[WhiteFideId "24175439"]
[BlackFideId "13406809"]
[WhiteElo "2615"]
[BlackElo "2322"]
[Result "0-1"]
[Round "04"]
[TimeControl "180+2"]
[Date "2023.04.25"]
[WhiteClock "0:00:01"]
[BlackClock "0:00:13"]

1. e4 {[%clk 0:02:58]}  Nf6 {[%clk 0:02:57]} 2. e5 {[%clk 0:02:55]}  Nd5 {[%clk 0:02:57]} 3. d4 {[%clk 0:02:55]}  d6 {[%clk 0:02:57]} 4. c4 {[%clk 0:02:55]}  Nb6 {[%clk 0:02:57]} 5. f4 {[%clk 0:02:56]}  dxe5 {[%clk 0:02:56]} 6. fxe5 {[%clk 0:02:56]}  Bf5 {[%clk 0:02:57]} 7. Nc3 {[%clk 0:02:54]}  e6 {[%clk 0:02:57]} 8. Be3 {[%clk 0:02:50]}  Be7 {[%clk 0:02:58]} 9. Nf3 {[%clk 0:02:49]}  O-O {[%clk 0:02:58]} 10. Bd3 {[%clk 0:02:44]}  Bg4 {[%clk 0:02:59]} 11. O-O {[%clk 0:02:40]}  Nc6 {[%clk 0:02:59]} 12. Be2 {[%clk 0:02:39]}  f6 {[%clk 0:02:55]} 13. exf6 {[%clk 0:02:04]}  Bxf6 {[%clk 0:02:56]} 14. Ne4 {[%clk 0:01:36]}  Bxf3 {[%clk 0:02:46]} 15. Nxf6+ {[%clk 0:01:36]}  Rxf6 {[%clk 0:02:42]} 16. gxf3 {[%clk 0:01:36]}  Rg6+ {[%clk 0:02:32]} 17. Kh1 {[%clk 0:01:36]}  Qh4 {[%clk 0:02:33]} 18. Qe1 {[%clk 0:01:31]}  Qh3 {[%clk 0:02:07]} 19. Qf2 {[%clk 0:01:30]}  Ne7 {[%clk 0:02:01]} 20. Rg1 {[%clk 0:01:27]}  Nd7 {[%clk 0:01:43]} 21. Bd3 {[%clk 0:01:09]}  Nf5 {[%clk 0:01:40]} 22. Rxg6 {[%clk 0:00:22]}  hxg6 {[%clk 0:01:41]} 23. Bf4 {[%clk 0:00:23]}  Rf8 {[%clk 0:01:22]} 24. Bf1 {[%clk 0:00:23]}  Qh5 {[%clk 0:01:20]} 25. Bxc7 {[%clk 0:00:24]}  Nh4 {[%clk 0:01:12]} 26. Bg3 {[%clk 0:00:24]}  Rxf3 {[%clk 0:00:57]} 27. Be2 {[%clk 0:00:21]}  Rxf2 {[%clk 0:00:58]} 28. Bxh5 {[%clk 0:00:22]}  Rxb2 {[%clk 0:00:54]} 29. Bg4 {[%clk 0:00:08]}  Nf5 {[%clk 0:00:54]} 30. Bc7 {[%clk 0:00:06]}  Nf6 {[%clk 0:00:53]} 31. Bxf5 {[%clk 0:00:02]}  gxf5 {[%clk 0:00:54]} 32. Re1 {[%clk 0:00:02]}  Kf7 {[%clk 0:00:53]} 33. Be5 {[%clk 0:00:01]}  Ng4 {[%clk 0:00:52]} 34. Bg3 {[%clk 0:00:01]}  g5 {[%clk 0:00:48]} 35. d5 {[%clk 0:00:01]}  exd5 {[%clk 0:00:47]} 36. cxd5 {[%clk 0:00:02]}  f4 {[%clk 0:00:48]} 37. h3 {[%clk 0:00:02]}  Nf6 {[%clk 0:00:47]} 38. Bh2 {[%clk 0:00:02]}  Nxd5 {[%clk 0:00:46]} 39. Re5 {[%clk 0:00:02]}  Rb1+ {[%clk 0:00:40]} 40. Bg1 {[%clk 0:00:02]}  Ne3 {[%clk 0:00:23]} 41. Rxg5 {[%clk 0:00:02]}  Kf6 {[%clk 0:00:24]} 42. Rg8 {[%clk 0:00:02]}  Kf5 {[%clk 0:00:24]} 43. h4 {[%clk 0:00:01]}  f3 {[%clk 0:00:16]} 44. h5 {[%clk 0:00:02]}  Kf4 {[%clk 0:00:14]} 45. Kh2 {[%clk 0:00:01]}  Ng4+ {[%clk 0:00:12]} 46. Rxg4+ {[%clk 0:00:01]}  Kxg4 {[%clk 0:00:13]} 47. h6 {[%clk 0:00:02]}  Rb5 {[%clk 0:00:12]} 48. Be3 {[%clk 0:00:02]}  Rh5+ {[%clk 0:00:12]} 49. Kg1 {[%clk 0:00:02]}  a5 {[%clk 0:00:12]} 50. a4 {[%clk 0:00:02]}  b5 {[%clk 0:00:12]} 51. axb5 {[%clk 0:00:01]}  Rxb5 {[%clk 0:00:12]} 52. Kf2 {[%clk 0:00:01]}  Rh5 {[%clk 0:00:13]} 53. Bc1 {[%clk 0:00:01]}  a4 {[%clk 0:00:13]} 0-1


[Site "https://www.chess.com"]

[Event "Titled Tuesday Blitz April 25 Early 2023"]
[White "Shuvalova, Polina"]
[Black "Kramnik, Vladimir"]
[WhiteFideId "24171760"]
[BlackFideId "4101588"]
[WhiteElo "2281"]
[BlackElo "2712"]
[Result "1-0"]
[Round "04"]
[TimeControl "180+2"]
[Date "2023.04.25"]
[WhiteClock "0:00:03"]
[BlackClock "0:00:01"]

1. e4 {[%clk 0:03:00]}  c5 {[%clk 0:02:59]} 2. Nf3 {[%clk 0:03:00]}  e6 {[%clk 0:02:59]} 3. d4 {[%clk 0:03:00]}  cxd4 {[%clk 0:02:59]} 4. Nxd4 {[%clk 0:03:00]}  a6 {[%clk 0:02:58]} 5. Nc3 {[%clk 0:03:01]}  d6 {[%clk 0:02:57]} 6. Be2 {[%clk 0:02:54]}  b5 {[%clk 0:02:56]} 7. O-O {[%clk 0:02:53]}  Bb7 {[%clk 0:02:55]} 8. a3 {[%clk 0:02:43]}  Nd7 {[%clk 0:02:54]} 9. f4 {[%clk 0:02:34]}  Ngf6 {[%clk 0:02:53]} 10. Bf3 {[%clk 0:02:34]}  Qc7 {[%clk 0:02:51]} 11. Kh1 {[%clk 0:02:29]}  Be7 {[%clk 0:02:49]} 12. Be3 {[%clk 0:02:13]}  Rc8 {[%clk 0:02:46]} 13. Nce2 {[%clk 0:01:55]}  h5 {[%clk 0:02:40]} 14. Nc3 {[%clk 0:01:41]}  Nc5 {[%clk 0:02:28]} 15. e5 {[%clk 0:01:31]}  dxe5 {[%clk 0:02:25]} 16. fxe5 {[%clk 0:01:27]}  Ng4 {[%clk 0:02:13]} 17. Bg1 {[%clk 0:01:02]}  Nxe5 {[%clk 0:02:06]} 18. Bxb7 {[%clk 0:01:02]}  Qxb7 {[%clk 0:02:03]} 19. Qe2 {[%clk 0:01:02]}  Ng6 {[%clk 0:01:53]} 20. b4 {[%clk 0:00:53]}  h4 {[%clk 0:01:34]} 21. h3 {[%clk 0:00:45]}  e5 {[%clk 0:01:26]} 22. Nf5 {[%clk 0:00:43]}  Ne6 {[%clk 0:01:25]} 23. Ne4 {[%clk 0:00:41]}  O-O {[%clk 0:01:23]} 24. Ned6 {[%clk 0:00:35]}  Bxd6 {[%clk 0:01:22]} 25. Nxd6 {[%clk 0:00:35]}  Ngf4 {[%clk 0:01:16]} 26. Qg4 {[%clk 0:00:30]}  Qc6 {[%clk 0:01:13]} 27. Nxc8 {[%clk 0:00:21]}  Rxc8 {[%clk 0:01:12]} 28. Rf2 {[%clk 0:00:20]}  Qc3 {[%clk 0:00:54]} 29. Raf1 {[%clk 0:00:20]}  Qg3 {[%clk 0:00:50]} 30. Qf5 {[%clk 0:00:16]}  Qg5 {[%clk 0:00:38]} 31. Qe4 {[%clk 0:00:10]}  Nh5 {[%clk 0:00:32]} 32. Bh2 {[%clk 0:00:09]}  Nef4 {[%clk 0:00:33]} 33. Qf3 {[%clk 0:00:06]}  Ng3+ {[%clk 0:00:30]} 34. Bxg3 {[%clk 0:00:05]}  hxg3 {[%clk 0:00:28]} 35. Rd2 {[%clk 0:00:05]}  f6 {[%clk 0:00:14]} 36. Rd7 {[%clk 0:00:05]}  Kh8 {[%clk 0:00:12]} 37. c3 {[%clk 0:00:04]}  Re8 {[%clk 0:00:10]} 38. Rfd1 {[%clk 0:00:05]}  Kh7 {[%clk 0:00:08]} 39. Qe4+ {[%clk 0:00:04]}  f5 {[%clk 0:00:07]} 40. Qc6 {[%clk 0:00:03]}  Re6 {[%clk 0:00:05]} 41. R7d6 {[%clk 0:00:04]}  Rxd6 {[%clk 0:00:05]} 42. Qxd6 {[%clk 0:00:04]}  e4 {[%clk 0:00:04]} 43. Rf1 {[%clk 0:00:04]}  Nd3 {[%clk 0:00:04]} 44. Qd5 {[%clk 0:00:04]}  Nf2+ {[%clk 0:00:04]} 45. Kg1 {[%clk 0:00:03]}  Qf4 {[%clk 0:00:02]} 46. Qd4 {[%clk 0:00:03]}  Qg5 {[%clk 0:00:01]} 47. Qe5 {[%clk 0:00:03]} 1-0


[Site "https://www.chess.com"]

[Event "Titled Tuesday Blitz April 25 Early 2023"]
[White "Bronstein, Or"]
[Black "Gupta, Abhijeet"]
[WhiteFideId "2815770"]
[BlackFideId "5010608"]
[WhiteElo "2356"]
[BlackElo "2528"]
[Result "0-1"]
[Round "04"]
[TimeControl "180+2"]
[Date "2023.04.25"]
[WhiteClock "0:00:26"]
[BlackClock "0:00:37"]

1. Nf3 {[%clk 0:03:00]}  Nf6 {[%clk 0:02:59]} 2. c4 {[%clk 0:02:58]}  Nc6 {[%clk 0:02:59]} 3. d4 {[%clk 0:02:57]}  e6 {[%clk 0:03:00]} 4. Nc3 {[%clk 0:02:54]}  Bb4 {[%clk 0:02:59]} 5. Bd2 {[%clk 0:02:53]}  O-O {[%clk 0:02:58]} 6. Qc2 {[%clk 0:02:51]}  d6 {[%clk 0:02:57]} 7. a3 {[%clk 0:02:50]}  Bxc3 {[%clk 0:02:57]} 8. Bxc3 {[%clk 0:02:51]}  Qe7 {[%clk 0:02:58]} 9. e4 {[%clk 0:02:35]}  e5 {[%clk 0:02:29]} 10. d5 {[%clk 0:02:14]}  Nb8 {[%clk 0:02:29]} 11. b4 {[%clk 0:01:48]}  a5 {[%clk 0:02:25]} 12. Be2 {[%clk 0:01:44]}  axb4 {[%clk 0:02:15]} 13. axb4 {[%clk 0:01:45]}  Rxa1+ {[%clk 0:02:15]} 14. Bxa1 {[%clk 0:01:46]}  Nh5 {[%clk 0:02:14]} 15. g3 {[%clk 0:01:45]}  Bh3 {[%clk 0:02:08]} 16. Nh4 {[%clk 0:01:37]}  Nf4 {[%clk 0:02:02]} 17. gxf4 {[%clk 0:01:34]}  Qxh4 {[%clk 0:02:01]} 18. fxe5 {[%clk 0:01:34]}  Bg2 {[%clk 0:01:53]} 19. Rg1 {[%clk 0:01:00]}  Qxh2 {[%clk 0:01:49]} 20. Rxg2 {[%clk 0:00:57]}  Qxg2 {[%clk 0:01:50]} 21. exd6 {[%clk 0:00:50]}  cxd6 {[%clk 0:01:47]} 22. c5 {[%clk 0:00:50]}  Qh1+ {[%clk 0:01:38]} 23. Bf1 {[%clk 0:00:50]}  Re8 {[%clk 0:01:39]} 24. f3 {[%clk 0:00:42]}  Qxf3 {[%clk 0:01:37]} 25. Bg2 {[%clk 0:00:41]}  Qe3+ {[%clk 0:00:52]} 26. Kf1 {[%clk 0:00:42]}  f5 {[%clk 0:00:52]} 27. Qb2 {[%clk 0:00:32]}  Qg3 {[%clk 0:00:44]} 28. cxd6 {[%clk 0:00:31]}  fxe4 {[%clk 0:00:41]} 29. Bxe4 {[%clk 0:00:26]}  Rxe4 {[%clk 0:00:37]} 0-1


[Site "https://www.chess.com"]

[Event "Titled Tuesday Blitz April 25 Early 2023"]
[White "feuervogel1000000"]
[Black "Zhigalko, Sergei"]
[BlackFideId "13502956"]
[WhiteElo "2426"]
[BlackElo "2626"]
[Result "0-1"]
[Round "04"]
[TimeControl "180+2"]
[Date "2023.04.25"]
[WhiteClock "0:01:20"]
[BlackClock "0:00:11"]

1. d4 {[%clk 0:03:00]}  Nf6 {[%clk 0:03:00]} 2. c4 {[%clk 0:03:00]}  e6 {[%clk 0:03:00]} 3. Nf3 {[%clk 0:02:59]}  b6 {[%clk 0:03:00]} 4. g3 {[%clk 0:02:59]}  Ba6 {[%clk 0:03:00]} 5. b3 {[%clk 0:02:58]}  Bb4+ {[%clk 0:03:00]} 6. Bd2 {[%clk 0:02:58]}  Be7 {[%clk 0:03:01]} 7. Bg2 {[%clk 0:02:58]}  c6 {[%clk 0:03:01]} 8. O-O {[%clk 0:02:58]}  d5 {[%clk 0:03:02]} 9. Qc2 {[%clk 0:02:59]}  Nbd7 {[%clk 0:03:02]} 10. Bf4 {[%clk 0:02:56]}  O-O {[%clk 0:03:01]} 11. Nbd2 {[%clk 0:02:56]}  Nh5 {[%clk 0:03:01]} 12. Rfe1 {[%clk 0:02:46]}  Nxf4 {[%clk 0:03:00]} 13. gxf4 {[%clk 0:02:47]}  Rc8 {[%clk 0:02:58]} 14. Rac1 {[%clk 0:02:43]}  Ba3 {[%clk 0:02:57]} 15. Rcd1 {[%clk 0:02:43]}  Bb4 {[%clk 0:02:57]} 16. Qb2 {[%clk 0:02:34]}  Qe7 {[%clk 0:02:57]} 17. cxd5 {[%clk 0:02:32]}  cxd5 {[%clk 0:02:56]} 18. Qb1 {[%clk 0:02:31]}  Nf6 {[%clk 0:02:52]} 19. Ne5 {[%clk 0:02:28]}  Rc7 {[%clk 0:02:38]} 20. f5 {[%clk 0:02:17]}  Rfc8 {[%clk 0:02:34]} 21. fxe6 {[%clk 0:02:17]}  Qxe6 {[%clk 0:02:28]} 22. e4 {[%clk 0:02:08]}  dxe4 {[%clk 0:02:24]} 23. Nxe4 {[%clk 0:02:00]}  Bxe1 {[%clk 0:02:18]} 24. Rxe1 {[%clk 0:02:00]}  Nxe4 {[%clk 0:02:00]} 25. Bxe4 {[%clk 0:01:56]}  g6 {[%clk 0:01:59]} 26. Qd1 {[%clk 0:01:49]}  Rc1 {[%clk 0:01:00]} 27. Qd2 {[%clk 0:01:45]}  Rxe1+ {[%clk 0:00:57]} 28. Qxe1 {[%clk 0:01:46]}  f6 {[%clk 0:00:37]} 29. Nf3 {[%clk 0:01:44]}  Kg7 {[%clk 0:00:23]} 30. Qe3 {[%clk 0:01:27]}  Qg4+ {[%clk 0:00:14]} 31. Kh1 {[%clk 0:01:26]}  Re8 {[%clk 0:00:14]} 32. Nd2 {[%clk 0:01:22]}  f5 {[%clk 0:00:13]} 33. Qf3 {[%clk 0:01:21]}  Rxe4 {[%clk 0:00:11]} 34. Nxe4 {[%clk 0:01:20]}  Qxf3+ {[%clk 0:00:11]} 0-1


[Site "https://www.chess.com"]

[Event "Titled Tuesday Blitz April 25 Early 2023"]
[White "Martinez Alcantara, Jose Eduardo"]
[Black "Sieciechowicz, Marcin"]
[WhiteFideId "3805662"]
[BlackFideId "1130170"]
[WhiteElo "2711"]
[BlackElo "2302"]
[Result "0-1"]
[Round "04"]
[TimeControl "180+2"]
[Date "2023.04.25"]
[WhiteClock "0:00:01"]
[BlackClock "0:00:18"]

1. e4 {[%clk 0:03:00]}  e6 {[%clk 0:03:00]} 2. d4 {[%clk 0:03:00]}  d5 {[%clk 0:03:00]} 3. Nd2 {[%clk 0:03:01]}  c5 {[%clk 0:03:00]} 4. Ngf3 {[%clk 0:03:00]}  cxd4 {[%clk 0:03:00]} 5. Nxd4 {[%clk 0:03:01]}  Nf6 {[%clk 0:02:59]} 6. exd5 {[%clk 0:03:01]}  Nxd5 {[%clk 0:03:00]} 7. c3 {[%clk 0:03:02]}  Be7 {[%clk 0:02:59]} 8. N2f3 {[%clk 0:03:03]}  O-O {[%clk 0:02:59]} 9. Bd3 {[%clk 0:03:03]}  Bd7 {[%clk 0:02:59]} 10. Qe2 {[%clk 0:03:00]}  Nc6 {[%clk 0:02:58]} 11. O-O {[%clk 0:02:47]}  Nxd4 {[%clk 0:02:56]} 12. Nxd4 {[%clk 0:02:48]}  a6 {[%clk 0:02:56]} 13. Qe4 {[%clk 0:02:44]}  g6 {[%clk 0:02:42]} 14. Bh6 {[%clk 0:02:44]}  Re8 {[%clk 0:02:42]} 15. Rad1 {[%clk 0:02:35]}  Qb6 {[%clk 0:02:42]} 16. Qe2 {[%clk 0:02:28]}  Rad8 {[%clk 0:02:36]} 17. Nf3 {[%clk 0:02:28]}  Bf8 {[%clk 0:02:34]} 18. Bg5 {[%clk 0:02:28]}  Be7 {[%clk 0:02:33]} 19. Bc1 {[%clk 0:02:28]}  Bf6 {[%clk 0:02:29]} 20. Be4 {[%clk 0:02:13]}  Qc7 {[%clk 0:02:22]} 21. c4 {[%clk 0:02:11]}  Nb4 {[%clk 0:02:10]} 22. b3 {[%clk 0:01:55]}  Bc6 {[%clk 0:02:10]} 23. a3 {[%clk 0:01:47]}  Bxe4 {[%clk 0:02:10]} 24. Qxe4 {[%clk 0:01:48]}  Na2 {[%clk 0:02:07]} 25. Bf4 {[%clk 0:01:42]}  Qb6 {[%clk 0:01:30]} 26. Rxd8 {[%clk 0:01:17]}  Rxd8 {[%clk 0:01:31]} 27. b4 {[%clk 0:01:15]}  Nc3 {[%clk 0:01:22]} 28. Qc2 {[%clk 0:01:15]}  a5 {[%clk 0:01:02]} 29. Bg5 {[%clk 0:00:57]}  Bxg5 {[%clk 0:00:56]} 30. Qxc3 {[%clk 0:00:57]}  Be7 {[%clk 0:00:46]} 31. c5 {[%clk 0:00:57]}  Qb5 {[%clk 0:00:43]} 32. h4 {[%clk 0:00:46]}  Qd3 {[%clk 0:00:26]} 33. Qe5 {[%clk 0:00:32]}  Qxa3 {[%clk 0:00:26]} 34. Qc7 {[%clk 0:00:32]}  Kf8 {[%clk 0:00:26]} 35. bxa5 {[%clk 0:00:27]}  Qxc5 {[%clk 0:00:24]} 36. Qxb7 {[%clk 0:00:25]}  Qxa5 {[%clk 0:00:24]} 37. Qe4 {[%clk 0:00:26]}  Qf5 {[%clk 0:00:24]} 38. Qe3 {[%clk 0:00:27]}  Bc5 {[%clk 0:00:23]} 39. Qh6+ {[%clk 0:00:26]}  Ke7 {[%clk 0:00:20]} 40. Qxh7 {[%clk 0:00:25]}  Qf6 {[%clk 0:00:20]} 41. Qh6 {[%clk 0:00:26]}  Rh8 {[%clk 0:00:19]} 42. Qc1 {[%clk 0:00:25]}  Bd6 {[%clk 0:00:19]} 43. Qc4 {[%clk 0:00:21]}  Qf4 {[%clk 0:00:18]} 44. Qc3 {[%clk 0:00:17]}  Rxh4 {[%clk 0:00:13]} 45. g3 {[%clk 0:00:17]}  Rg4 {[%clk 0:00:14]} 46. Qb3 {[%clk 0:00:16]}  Rxg3+ {[%clk 0:00:12]} 47. fxg3 {[%clk 0:00:16]}  Qxg3+ {[%clk 0:00:13]} 48. Kh1 {[%clk 0:00:16]}  Qh3+ {[%clk 0:00:13]} 49. Kg1 {[%clk 0:00:17]}  Qg3+ {[%clk 0:00:13]} 50. Kh1 {[%clk 0:00:18]}  Qh3+ {[%clk 0:00:13]} 51. Kg1 {[%clk 0:00:18]}  Bc5+ {[%clk 0:00:14]} 52. Rf2 {[%clk 0:00:15]}  Qg3+ {[%clk 0:00:15]} 53. Kh1 {[%clk 0:00:15]}  Qxf2 {[%clk 0:00:16]} 54. Qb7+ {[%clk 0:00:14]}  Kf6 {[%clk 0:00:16]} 55. Qe4 {[%clk 0:00:14]}  Qf1+ {[%clk 0:00:15]} 56. Kh2 {[%clk 0:00:14]}  Bd6+ {[%clk 0:00:16]} 57. Ne5 {[%clk 0:00:15]}  Bxe5+ {[%clk 0:00:16]} 58. Qxe5+ {[%clk 0:00:16]}  Kxe5 {[%clk 0:00:16]} 59. Kg3 {[%clk 0:00:17]}  Qf5 {[%clk 0:00:17]} 60. Kh4 {[%clk 0:00:18]}  Ke4 {[%clk 0:00:17]} 61. Kg3 {[%clk 0:00:19]}  Ke3 {[%clk 0:00:16]} 62. Kh2 {[%clk 0:00:20]}  Qg4 {[%clk 0:00:16]} 63. Kh1 {[%clk 0:00:20]}  Kf2 {[%clk 0:00:17]} 64. Kh2 {[%clk 0:00:01]}  Qh4# {[%clk 0:00:18]} 0-1


[Site "https://www.chess.com"]

[Event "Titled Tuesday Blitz April 25 Early 2023"]
[White "Lazavik, Denis"]
[Black "Bryakin, Mikhail"]
[WhiteFideId "13515110"]
[BlackFideId "4165314"]
[WhiteElo "2560"]
[BlackElo "2447"]
[Result "1-0"]
[Round "04"]
[TimeControl "180+2"]
[Date "2023.04.25"]
[WhiteClock "0:01:54"]
[BlackClock "0:00:02"]

1. d4 {[%clk 0:03:00]}  d6 {[%clk 0:01:49]} 2. Nf3 {[%clk 0:02:54]}  Bg4 {[%clk 0:01:49]} 3. c4 {[%clk 0:02:54]}  c6 {[%clk 0:01:49]} 4. Nc3 {[%clk 0:02:52]}  Bxf3 {[%clk 0:01:48]} 5. exf3 {[%clk 0:02:50]}  Nf6 {[%clk 0:01:49]} 6. d5 {[%clk 0:02:48]}  g6 {[%clk 0:01:44]} 7. Be2 {[%clk 0:02:48]}  Bg7 {[%clk 0:01:45]} 8. O-O {[%clk 0:02:49]}  O-O {[%clk 0:01:46]} 9. Be3 {[%clk 0:02:48]}  Nbd7 {[%clk 0:01:39]} 10. Rc1 {[%clk 0:02:46]}  a6 {[%clk 0:01:34]} 11. f4 {[%clk 0:02:35]}  cxd5 {[%clk 0:01:33]} 12. cxd5 {[%clk 0:02:35]}  b5 {[%clk 0:01:33]} 13. a3 {[%clk 0:02:36]}  Rc8 {[%clk 0:00:58]} 14. Re1 {[%clk 0:02:35]}  Nb6 {[%clk 0:00:50]} 15. Qb3 {[%clk 0:02:14]}  Nc4 {[%clk 0:00:46]} 16. Bd4 {[%clk 0:02:14]}  Nd7 {[%clk 0:00:31]} 17. Bxg7 {[%clk 0:02:13]}  Kxg7 {[%clk 0:00:32]} 18. Ne4 {[%clk 0:02:13]}  Na5 {[%clk 0:00:07]} 19. Qb4 {[%clk 0:02:11]}  Qb6 {[%clk 0:00:07]} 20. Bf1 {[%clk 0:01:57]}  Rxc1 {[%clk 0:00:07]} 21. Rxc1 {[%clk 0:01:57]}  Nb7 {[%clk 0:00:07]} 22. Qc3+ {[%clk 0:01:56]}  Nf6 {[%clk 0:00:07]} 23. Nxf6 {[%clk 0:01:53]}  exf6 {[%clk 0:00:07]} 24. Qc6 {[%clk 0:01:53]}  Qa7 {[%clk 0:00:07]} 25. Qd7 {[%clk 0:01:53]}  Rd8 {[%clk 0:00:05]} 26. Qe7 {[%clk 0:01:54]}  Rb8 {[%clk 0:00:02]} 27. Rc7 {[%clk 0:01:54]} 1-0


[Site "https://www.chess.com"]

[Event "Titled Tuesday Blitz April 25 Early 2023"]
[White "Bilych, Olexiy"]
[Black "Svane, Frederik"]
[WhiteFideId "14156504"]
[BlackFideId "12923044"]
[WhiteElo "2320"]
[BlackElo "2502"]
[Result "1-0"]
[Round "04"]
[TimeControl "180+2"]
[Date "2023.04.25"]
[WhiteClock "0:00:51"]
[BlackClock "0:00:03"]

1. d4 {[%clk 0:03:00]}  Nf6 {[%clk 0:02:59]} 2. c4 {[%clk 0:03:01]}  e6 {[%clk 0:02:59]} 3. Nf3 {[%clk 0:03:00]}  Bb4+ {[%clk 0:02:57]} 4. Nbd2 {[%clk 0:02:59]}  O-O {[%clk 0:02:55]} 5. a3 {[%clk 0:02:54]}  Bxd2+ {[%clk 0:02:56]} 6. Qxd2 {[%clk 0:02:52]}  b6 {[%clk 0:02:55]} 7. e3 {[%clk 0:02:51]}  Bb7 {[%clk 0:02:56]} 8. Be2 {[%clk 0:02:51]}  d5 {[%clk 0:02:55]} 9. b3 {[%clk 0:02:49]}  c5 {[%clk 0:02:45]} 10. dxc5 {[%clk 0:02:43]}  Ne4 {[%clk 0:02:45]} 11. Qc2 {[%clk 0:02:42]}  Nxc5 {[%clk 0:02:45]} 12. O-O {[%clk 0:02:41]}  dxc4 {[%clk 0:02:44]} 13. Bxc4 {[%clk 0:02:37]}  Bxf3 {[%clk 0:02:42]} 14. gxf3 {[%clk 0:02:37]}  Qf6 {[%clk 0:02:32]} 15. f4 {[%clk 0:02:22]}  a5 {[%clk 0:01:45]} 16. Bb2 {[%clk 0:02:22]}  Qh4 {[%clk 0:01:45]} 17. Kh1 {[%clk 0:02:07]}  Qh5 {[%clk 0:01:39]} 18. Rg1 {[%clk 0:01:53]}  g6 {[%clk 0:01:28]} 19. Rg3 {[%clk 0:01:44]}  Nbd7 {[%clk 0:01:04]} 20. Rag1 {[%clk 0:01:32]}  Rac8 {[%clk 0:00:58]} 21. Qc3 {[%clk 0:01:10]}  e5 {[%clk 0:00:48]} 22. fxe5 {[%clk 0:00:51]}  Ne4 {[%clk 0:00:48]} 23. Qd4 {[%clk 0:00:51]}  Nxg3+ {[%clk 0:00:38]} 24. Rxg3 {[%clk 0:00:52]}  Rxc4 {[%clk 0:00:04]} 25. bxc4 {[%clk 0:00:52]}  Nc5 {[%clk 0:00:05]} 26. e6 {[%clk 0:00:52]}  f6 {[%clk 0:00:05]} 27. e7 {[%clk 0:00:52]}  Re8 {[%clk 0:00:04]} 28. Qxf6 {[%clk 0:00:51]}  Qd1+ {[%clk 0:00:04]} 29. Kg2 {[%clk 0:00:51]}  Ne6 {[%clk 0:00:03]} 30. Qxe6# {[%clk 0:00:51]} 1-0


[Site "https://www.chess.com"]

[Event "Titled Tuesday Blitz April 25 Early 2023"]
[White "De Silva, L M S T"]
[Black "Tari, Aryan"]
[WhiteFideId "9953698"]
[BlackFideId "1510045"]
[WhiteElo "2404"]
[BlackElo "2561"]
[Result "0-1"]
[Round "04"]
[TimeControl "180+2"]
[Date "2023.04.25"]
[WhiteClock "0:00:02"]
[BlackClock "0:00:03"]

1. c4 {[%clk 0:03:00]}  c5 {[%clk 0:02:55]} 2. Nf3 {[%clk 0:03:00]}  Nc6 {[%clk 0:02:55]} 3. e3 {[%clk 0:03:00]}  Nf6 {[%clk 0:02:49]} 4. Nc3 {[%clk 0:03:00]}  e6 {[%clk 0:02:42]} 5. d4 {[%clk 0:03:00]}  d5 {[%clk 0:02:42]} 6. cxd5 {[%clk 0:02:58]}  exd5 {[%clk 0:02:36]} 7. Be2 {[%clk 0:02:55]}  Bd6 {[%clk 0:02:31]} 8. O-O {[%clk 0:02:55]}  O-O {[%clk 0:02:31]} 9. dxc5 {[%clk 0:02:54]}  Bxc5 {[%clk 0:02:31]} 10. b3 {[%clk 0:02:53]}  Bg4 {[%clk 0:02:18]} 11. Bb2 {[%clk 0:02:52]}  Bd6 {[%clk 0:02:18]} 12. Nd4 {[%clk 0:02:49]}  Bxe2 {[%clk 0:02:12]} 13. Ncxe2 {[%clk 0:02:50]}  Ne4 {[%clk 0:01:54]} 14. Nc3 {[%clk 0:02:34]}  Re8 {[%clk 0:00:58]} 15. Nf3 {[%clk 0:02:26]}  Ba3 {[%clk 0:00:44]} 16. Bxa3 {[%clk 0:02:16]}  Nxc3 {[%clk 0:00:44]} 17. Qd3 {[%clk 0:02:15]}  d4 {[%clk 0:00:43]} 18. Bb2 {[%clk 0:02:10]}  Nb4 {[%clk 0:00:37]} 19. Qc4 {[%clk 0:01:53]}  Nc2 {[%clk 0:00:22]} 20. Nxd4 {[%clk 0:00:32]}  Rc8 {[%clk 0:00:18]} 21. Qd3 {[%clk 0:00:23]}  Nxd4 {[%clk 0:00:08]} 22. exd4 {[%clk 0:00:23]}  Ne2+ {[%clk 0:00:05]} 23. Kh1 {[%clk 0:00:23]}  Qd5 {[%clk 0:00:06]} 24. Qd2 {[%clk 0:00:12]}  Rc6 {[%clk 0:00:04]} 25. Rae1 {[%clk 0:00:11]}  Rce6 {[%clk 0:00:04]} 26. f3 {[%clk 0:00:05]}  b6 {[%clk 0:00:02]} 27. g3 {[%clk 0:00:05]}  h5 {[%clk 0:00:02]} 28. Kg2 {[%clk 0:00:06]}  h4 {[%clk 0:00:02]} 29. Kf2 {[%clk 0:00:06]}  hxg3+ {[%clk 0:00:02]} 30. hxg3 {[%clk 0:00:07]}  Qh5 {[%clk 0:00:02]} 31. Rh1 {[%clk 0:00:07]}  Qg6 {[%clk 0:00:03]} 32. g4 {[%clk 0:00:07]}  Nf4 {[%clk 0:00:02]} 33. Qxf4 {[%clk 0:00:06]}  Qc2+ {[%clk 0:00:02]} 34. Kg3 {[%clk 0:00:05]}  Rxe1 {[%clk 0:00:02]} 35. Rxe1 {[%clk 0:00:02]}  Rxe1 {[%clk 0:00:03]} 0-1


[Site "https://www.chess.com"]

[Event "Titled Tuesday Blitz April 25 Early 2023"]
[White "Kushko, Dmitriy"]
[Black "Sarana, Alexey"]
[WhiteFideId "14162261"]
[BlackFideId "24133795"]
[WhiteElo "2230"]
[BlackElo "2714"]
[Result "0-1"]
[Round "04"]
[TimeControl "180+2"]
[Date "2023.04.25"]
[WhiteClock "0:00:10"]
[BlackClock "0:00:30"]

1. f4 {[%clk 0:03:00]}  Nc6 {[%clk 0:02:50]} 2. Nf3 {[%clk 0:03:00]}  d6 {[%clk 0:02:50]} 3. e4 {[%clk 0:02:57]}  Bg4 {[%clk 0:02:50]} 4. h3 {[%clk 0:02:53]}  Bxf3 {[%clk 0:02:50]} 5. Qxf3 {[%clk 0:02:54]}  e5 {[%clk 0:02:51]} 6. Bc4 {[%clk 0:02:53]}  Nd4 {[%clk 0:02:39]} 7. Qd3 {[%clk 0:02:48]}  Qh4+ {[%clk 0:02:32]} 8. g3 {[%clk 0:02:48]}  Qh5 {[%clk 0:02:31]} 9. c3 {[%clk 0:02:41]}  Nc6 {[%clk 0:02:29]} 10. Qe2 {[%clk 0:02:33]}  Qg6 {[%clk 0:02:25]} 11. g4 {[%clk 0:02:00]}  exf4 {[%clk 0:02:20]} 12. d4 {[%clk 0:02:00]}  Nf6 {[%clk 0:02:19]} 13. Bd3 {[%clk 0:01:59]}  Qh6 {[%clk 0:02:15]} 14. Qg2 {[%clk 0:01:36]}  O-O-O {[%clk 0:02:00]} 15. Nd2 {[%clk 0:01:21]}  g5 {[%clk 0:01:55]} 16. Kd1 {[%clk 0:01:13]}  Qg7 {[%clk 0:01:52]} 17. Nf3 {[%clk 0:01:10]}  h6 {[%clk 0:01:52]} 18. Bd2 {[%clk 0:01:08]}  Nd7 {[%clk 0:01:51]} 19. Kc2 {[%clk 0:01:06]}  Nb6 {[%clk 0:01:51]} 20. h4 {[%clk 0:00:59]}  Be7 {[%clk 0:01:51]} 21. h5 {[%clk 0:00:52]}  Kb8 {[%clk 0:01:49]} 22. Rhe1 {[%clk 0:00:46]}  Bf6 {[%clk 0:01:47]} 23. b4 {[%clk 0:00:36]}  Rhe8 {[%clk 0:01:43]} 24. a4 {[%clk 0:00:35]}  a5 {[%clk 0:01:40]} 25. b5 {[%clk 0:00:33]}  Ne7 {[%clk 0:01:30]} 26. Qf2 {[%clk 0:00:23]}  Nec8 {[%clk 0:01:25]} 27. c4 {[%clk 0:00:22]}  Nd7 {[%clk 0:01:11]} 28. Bxa5 {[%clk 0:00:22]}  Nc5 {[%clk 0:01:10]} 29. Bc3 {[%clk 0:00:14]}  Nxd3 {[%clk 0:01:08]} 30. Kxd3 {[%clk 0:00:15]}  Qh7 {[%clk 0:01:02]} 31. Re2 {[%clk 0:00:14]}  d5 {[%clk 0:00:59]} 32. cxd5 {[%clk 0:00:12]}  Rxd5 {[%clk 0:00:58]} 33. Rae1 {[%clk 0:00:12]}  Rdd8 {[%clk 0:00:50]} 34. Kc2 {[%clk 0:00:12]}  Nb6 {[%clk 0:00:50]} 35. Kb3 {[%clk 0:00:11]}  Bh8 {[%clk 0:00:38]} 36. a5 {[%clk 0:00:11]}  Nc8 {[%clk 0:00:39]} 37. d5 {[%clk 0:00:11]}  Bxc3 {[%clk 0:00:35]} 38. Kxc3 {[%clk 0:00:12]}  Nd6 {[%clk 0:00:35]} 39. Nd2 {[%clk 0:00:10]}  Qg7+ {[%clk 0:00:32]} 40. Kb4 {[%clk 0:00:10]}  Qb2+ {[%clk 0:00:30]} 41. Nb3 {[%clk 0:00:10]}  Rxe4+ {[%clk 0:00:30]} 0-1


[Site "https://www.chess.com"]